Cogmind - Beta 10.2 @@@ ROGUE MODE // 2021.07.04 @ 01:18:37 // Winter2019/RPGLIKE Player: Kenzurith Result: Destroyed by L-31 Rogue with Katana Performance ------------- Evolutions (2) 1000 Regions Visited (6) 1200 Robots Destroyed (82) 410 Value Destroyed (2250) 2250 Prototype IDs (5) 100 Alien Tech Used (0) 0 Bonus (197) 197 TOTAL SCORE: 5157 Bonus ------- High Alert Combat Kills 197 Cogmind --------- Core Integrity 0/600 Matter 214/300 Energy 330/330 System Corruption 0% Temperature Cool (0) Movement Walking (120) Location -8/Materials Parts ------- > --- POWER (2) -------- Cooled Ion Engine Light Angular Momentum Engine > --- PROPULSION (4) --- Carbon-fiber Leg Carbon-fiber Leg Carbon-fiber Leg Carbon-fiber Leg > --- UTILITY (6) ------ Advanced Sensor Array Improved Signal Interpreter Advanced Terrain Scanner Improved Targeting Computer Reactive Plating > --- WEAPON (4) ------- Improved Medium Laser Improved Medium Laser Heavy Assault Rifle Heavy Assault Rifle > --- INVENTORY (3) ---- Powered Armor Light EM Pulse Cannon Katana Peak State ------------ > --- POWER ------------ Cooled Ion Engine Light Angular Momentum Engine > --- PROPULSION ------- Carbon-fiber Leg Carbon-fiber Leg Carbon-fiber Leg Carbon-fiber Leg > --- UTILITY ---------- Advanced Sensor Array Improved Signal Interpreter Advanced Terrain Scanner Improved Targeting Computer Reactive Plating Powered Armor > --- WEAPON ----------- Improved Medium Laser Improved Medium Laser Heavy Assault Rifle Heavy Assault Rifle > --- INVENTORY -------- Light EM Pulse Cannon Katana [Rating: 47] Favorites ----------- Power Cooled Ion Engine Engine Cooled Ion Engine Propulsion Aluminum Leg Leg Aluminum Leg Flight Unit Improved VTOL Module Utility Improved Targeting Computer Device Improved Terrain Scanner Processor Improved Targeting Computer Protection Powered Armor Weapon Improved Medium Laser Energy Gun Improved Medium Laser Energy Cannon Advanced Beam Cannon Ballistic Gun Heavy Assault Rifle Build | -11 -10 -9 -9 -9 -8 -8 ------- Run | Scr Mat Mat Min Exi Min Mat Slots Evolved 12 | 2 . 7 1 . . 2 Power 1 | . . 1 . . . . Propulsion 3 | 1 . 1 . . . 1 Utility 5 | . . 3 1 . . 1 Weapon 3 | 1 . 2 . . . . Parts Attached 43 | 3 1 24 1 . 3 11 Power 5 | . . 4 . . 1 . Engine 5 | . . 4 . . 1 . Core . | . . . . . . . Reactor . | . . . . . . . Propulsion 14 | 1 . 6 . . 1 6 Treads . | . . . . . . . Leg 13 | 1 . 6 . . 1 5 Wheel . | . . . . . . . Hover . | . . . . . . . Flight 1 | . . . . . . 1 Utility 10 | . 1 3 1 . 1 4 Device 5 | . 1 1 . . 1 2 Storage . | . . . . . . . Processor 2 | . . 2 . . . . Hackware . | . . . . . . . Protection 3 | . . . 1 . . 2 Artifact . | . . . . . . . Weapon 14 | 2 . 11 . . . 1 Energy Gun 6 | 2 . 4 . . . . Energy Cannon 1 | . . 1 . . . . Ballistic Gun 7 | . . 6 . . . 1 Ballistic Cannon . | . . . . . . . Launcher . | . . . . . . . Special Weapon . | . . . . . . . Impact Weapon . | . . . . . . . Slashing Weapon . | . . . . . . . Piercing Weapon . | . . . . . . . Special Melee Weapon . | . . . . . . . Unidentified Prototypes 5 | . . 4 . . . 1 Parts Lost . | . . . . . . . Power . | . . . . . . . Propulsion . | . . . . . . . Utility . | . . . . . . . Weapon . | . . . . . . . Highest Loss Streak . | . . . . . . . Average Slot Usage (%) 99 | . 98 99 100 100 99 99 Engine 14 | . 16 14 14 14 13 12 Leg 23 | . 33 24 21 21 21 21 Device 14 | . 14 15 14 14 14 12 Processor 11 | . . 9 14 14 14 12 Protection 5 | . . . 6 7 7 11 Energy Gun 16 | . 33 18 14 14 14 12 Ballistic Gun 12 | . . 14 14 14 14 12 Naked Turns . | . . . . . . . Heaviest Build 51 | 8 9 30 40 40 41 51 Greatest Support 65 | 20 20 33 33 33 43 65 Greatest Overweight (x) 1 | . . 1 1 1 1 1 Average Overweight (x) . | . . . . 1 . . Largest Inventory Capacity 3 | . . 1 1 1 1 3 Average Capacity 1 | . . . 1 1 1 1 Most Carried 3 | . . 1 1 1 1 3 Average Carried 1 | . . . 1 1 1 1 Final Capacity 3 | . . 1 1 1 1 3 Final Carried 3 | . . 1 1 1 1 3 Class Distribution -------------------- 62% | Scavenger-Skirmisher 15% | Mutant 13% | Scavenger-Gunner 8% | Gunner Dominant Class ---------------- Mutant | -10/Materials Scavenger-Gunner | -9/Materials Scavenger-Skirmisher | -9/Mines Scavenger-Skirmisher | -9/Exiles Scavenger-Skirmisher | -8/Mines Scavenger-Skirmisher | -8/Materials Resources | -11 -10 -9 -9 -9 -8 -8 ----------- Run | Scr Mat Mat Min Exi Min Mat Matter Collected 1526 | 230 10 537 54 . 197 498 Remotely . | . . . . . . . Salvage Created 2730 | . 205 817 130 . 365 1213 Parts 164 | . 9 64 8 . 20 63 Haulers Intercepted 4 | . 1 3 . . . . Recyclers Shooed 1 | . . 1 . . . . Parts Field Recycled . | . . . . . . . Retrieved Matter . | . . . . . . . Parts Self-Destructed . | . . . . . . . Prevented . | . . . . . . . Kills | -11 -10 -9 -9 -9 -8 -8 ------- Run | Scr Mat Mat Min Exi Min Mat Combat Hostiles Destroyed 71 | . 4 28 5 . 9 25 Guns 71 | . 4 28 5 . 9 25 Classes Destroyed 10 | . 2 3 . . 1 4 Builder 1 | . . . . . . 1 Hauler 4 | . 1 3 . . . . Recycler 2 | . . . . . 1 1 Operator 1 | . . . . . . 1 Watcher 3 | . . 3 . . . . Swarmer 28 | . . 18 4 . 4 2 Grunt 32 | . 4 7 1 . 5 15 Brawler 1 | . . . . . . 1 Duelist 1 | . . . . . . 1 Sentry 9 | . . 3 . . . 6 Best Kill Streak 11 | . 2 11 4 . 5 6 Combat Bots Only 11 | . 2 11 4 . 4 5 Max Kills in Single Turn 2 | . 1 2 2 . 2 2 Gunslinging 1 | . . 1 . . 1 . Exploded . | . . . . . . . Melee . | . . . . . . . Uniques/NPCs Destroyed . | . . . . . . . Combat | -11 -10 -9 -9 -9 -8 -8 -------- Run | Scr Mat Mat Min Exi Min Mat Damage Taken 3254 | . 151 990 136 . 493 1484 Core 2295 | . 119 781 87 . 320 988 Absorbed by Shields . | . . . . . . . Redirected to Core 2011 | . 103 632 73 . 304 899 Core Remaining (%) 80 | 100 92 . . . 48 . Volleys Fired 209 | . 19 85 6 . 20 79 Largest 4 | . 2 4 4 . 4 4 Hottest 191 | . 90 191 158 . 158 158 Shots Fired 727 | . 38 275 20 . 78 316 Gun 727 | . 38 275 20 . 78 316 Cannon . | . . . . . . . Launcher . | . . . . . . . Special . | . . . . . . . Kinetic 327 | . . 117 12 . 40 158 Thermal 400 | . 38 158 8 . 38 158 Explosive . | . . . . . . . Electromagnetic . | . . . . . . . Robot Hit Streak 29 | . 8 29 3 . 17 12 Robot Miss Streak 6 | . 3 3 4 . 6 4 Penetration Max . | . . . . . . . Secondary Targets 18 | . . 9 . . 4 5 Max Gunslinging Chain 1 | . . 1 . . 1 1 Shots Hit Robots 413 | . 25 134 7 . 49 198 Core Hits 142 | . 11 47 5 . 20 59 Critical Hits 2 | . . . . . 1 1 Critical Kills 2 | . . . . . 1 1 Critical Parts Destroyed . | . . . . . . . Melee Attacks . | . . . . . . . Impact . | . . . . . . . Slashing . | . . . . . . . Piercing . | . . . . . . . Sneak Attacks . | . . . . . . . Combat Hostiles . | . . . . . . . Follow-up Attacks . | . . . . . . . Damage Inflicted 5414 | . 281 1495 127 . 772 2739 Guns 5414 | . 281 1495 127 . 772 2739 Cannons . | . . . . . . . Explosions . | . . . . . . . Melee . | . . . . . . . Ramming . | . . . . . . . Kinetic 2877 | . . 912 93 . 412 1460 Thermal 2537 | . 281 583 34 . 360 1279 Explosive . | . . . . . . . Electromagnetic . | . . . . . . . Impact . | . . . . . . . Slashing . | . . . . . . . Piercing . | . . . . . . . Highest Corruption 3 | . . 3 3 3 3 . Average Corruption 2 | . . 2 3 3 3 . Corruption Purged . | . . . . . . . Effects 40 | . . 19 4 4 13 . Message Errors 6 | . . 3 1 . 2 . Matter Fused 9 | . . 2 1 4 2 . Heat Flow Errors 3 | . . 1 1 . 1 . Energy Discharges 7 | . . 3 . . 4 . Data Loss (minor) 2 | . . 2 . . . . Targeting Errors 11 | . . 6 1 . 4 . Weapon Failures 2 | . . 2 . . . . Overload Shots . | . . . . . . . Overflow Damage . | . . . . . . . Projectiles . | . . . . . . . Explosions . | . . . . . . . Melee . | . . . . . . . Knockbacks . | . . . . . . . Impact . | . . . . . . . Kinetic . | . . . . . . . Secondary . | . . . . . . . Self-Inflicted Damage . | . . . . . . . Shots . | . . . . . . . Rammed . | . . . . . . . Targets Rammed . | . . . . . . . Kicked . | . . . . . . . Crushed . | . . . . . . . Highest Temperature 336 | . 1 336 75 . 145 170 Average Temperature 62 | . 1 87 33 . 64 44 Received Heat Transfer 912 | . 84 165 6 . 180 477 Effects 3 | . . 3 . . . . Interference 3 | . . 3 . . . . Siege Activations . | . . . . . . . Robots Corrupted . | . . . . . . . Combat Hostiles . | . . . . . . . Parts Fried . | . . . . . . . Impact Corruptions . | . . . . . . . Robots Melted . | . . . . . . . Combat Hostiles . | . . . . . . . Parts Melted 9 | . 1 3 . . 1 4 Heat Transferred 5901 | . 744 1531 74 . 777 2775 Parts Sabotaged . | . . . . . . . Parts Stolen . | . . . . . . . Parts Stripped . | . . . . . . . Power Chain Reactions . | . . . . . . . Missiles Intercepted . | . . . . . . . Alert | -11 -10 -9 -9 -9 -8 -8 ------- Run | Scr Mat Mat Min Exi Min Mat Peak Influence 685 | . 138 685 344 . 245 672 Initial 234 | . . 57 234 . . 17 Average 292 | . 62 432 294 . 112 356 Maximum Alert Level 2 | . . 2 1 . 1 2 Low Security (%) 38 | 100 100 15 . . 88 15 Level 1 34 | . . 29 100 . 11 48 Level 2 27 | . . 54 . . . 35 Level 3 . | . . . . . . . Level 4 . | . . . . . . . Level 5 . | . . . . . . . High Security . | . . . . . . . Max Security . | . . . . . . . Squads Dispatched 9 | . 1 1 . . . 7 Investigation 1 | . 1 . . . . . Extermination . | . . . . . . . Reinforcement 5 | . . 1 . . . 4 Assault . | . . . . . . . Garrison 3 | . . . . . . 3 Intercept . | . . . . . . . Construction Impeded . | . . . . . . . Haulers Reinforced . | . . . . . . . Stealth | -11 -10 -9 -9 -9 -8 -8 --------- Run | Scr Mat Mat Min Exi Min Mat Distress Signals 8 | . . 5 . . . 3 Communications Jammed . | . . . . . . . Distress Signals . | . . . . . . . Times Spotted 107 | . 5 43 5 . 10 44 Peak Tracking Total 12 | . 2 12 4 . 4 9 Tactical Retreats 7 | . . 4 . . . 3 Traps | -11 -10 -9 -9 -9 -8 -8 ------- Run | Scr Mat Mat Min Exi Min Mat Traps Triggered 3 | . 1 2 . . . . Indirectly . | . . . . . . . Trap Hack Attempts . | . . . . . . . Triggered . | . . . . . . . Disarmed . | . . . . . . . Reprogrammed . | . . . . . . . Reused . | . . . . . . . Traps Extracted . | . . . . . . . Installed . | . . . . . . . Triggered . | . . . . . . . Machines | -11 -10 -9 -9 -9 -8 -8 ---------- Run | Scr Mat Mat Min Exi Min Mat Machines Disabled 2 | . . . . . 2 . Max in Single Turn 1 | . . . . . 1 . Machines Sabotaged . | . . . . . . . Garrisons Compromised . | . . . . . . . Overloaded Fab Kills . | . . . . . . . Fab Network Shutdowns . | . . . . . . . Hacking | -11 -10 -9 -9 -9 -8 -8 --------- Run | Scr Mat Mat Min Exi Min Mat Machines Accessed 10 | . 4 1 1 1 . 3 Terminals 8 | . 4 1 . . . 3 Fabricators . | . . . . . . . Repair Stations . | . . . . . . . Recycling Units . | . . . . . . . Scanalyzers . | . . . . . . . Garrison Access . | . . . . . . . Total Hacks 23 | . 10 2 1 1 . 9 Successful 11 | . 5 1 1 1 . 3 Failed 12 | . 5 1 . . . 6 Catastrophic 2 | . 1 . . . . 1 Database Lockouts . | . . . . . . . Manual 12 | . 3 . . . . 9 Terminals 21 | . 10 2 . . . 9 Fabricators . | . . . . . . . Repair Stations . | . . . . . . . Recycling Units . | . . . . . . . Scanalyzers . | . . . . . . . Garrison Access . | . . . . . . . Terminal Hacks 10 | . 5 1 1 1 . 2 Record 1 | . . . . 1 . . Open Door 1 | . . . 1 . . . Level Access Points 1 | . . . . . . 1 Branch Access Points 3 | . 1 1 . . . 1 Dispatch Records 2 | . 2 . . . . . Patrol Status 1 | . 1 . . . . . Extermination Status 1 | . 1 . . . . . Fabricator Hacks . | . . . . . . . Repair Station Hacks . | . . . . . . . Recycling Unit Hacks . | . . . . . . . Scanalyzer . | . . . . . . . Garrison Access Hacks . | . . . . . . . Unauthorized Hacks 1 | . . . . . . 1 Terminals 1 | . . . . . . 1 Botnet 1 | . . . . . . 1 Fabricators . | . . . . . . . Repair Stations . | . . . . . . . Recycling Units . | . . . . . . . Scanalyzers . | . . . . . . . Garrison Access . | . . . . . . . Data Cores Recovered . | . . . . . . . Used . | . . . . . . . Hacking Detections 7 | . 4 . . . . 3 Full Trace Events . | . . . . . . . Feedback Events . | . . . . . . . Feedback Blocked . | . . . . . . . Robot Schematics Acquired . | . . . . . . . Robots Built . | . . . . . . . Matter . | . . . . . . . Time . | . . . . . . . Total Robot Build Rating . | . . . . . . . Part Schematics Acquired . | . . . . . . . Parts Built . | . . . . . . . Matter . | . . . . . . . Time . | . . . . . . . Total Part Build Rating . | . . . . . . . Parts Repaired . | . . . . . . . Time . | . . . . . . . Parts Recycled . | . . . . . . . Recycled Matter . | . . . . . . . Retrieved Matter . | . . . . . . . Retrieved Components . | . . . . . . . Parts Scanalyzed . | . . . . . . . Part Schematics Acquired . | . . . . . . . Parts Damaged . | . . . . . . . Bothacking | -11 -10 -9 -9 -9 -8 -8 ------------ Run | Scr Mat Mat Min Exi Min Mat Used RIF Installer . | . . . . . . . Robots Hacked . | . . . . . . . Non-combat . | . . . . . . . Combat . | . . . . . . . Robot Hacks Applied . | . . . . . . . Relay Couplers Released . | . . . . . . . Robots Rewired . | . . . . . . . Allies Hacked . | . . . . . . . Hacks Repelled . | . . . . . . . Allies | -11 -10 -9 -9 -9 -8 -8 -------- Run | Scr Mat Mat Min Exi Min Mat Total Allies . | . . . . . . . Largest Group . | . . . . . . . Highest-Rated Group . | . . . . . . . Highest-Rated Ally . | . . . . . . . Total Orders . | . . . . . . . Ally Attacks . | . . . . . . . Total Damage . | . . . . . . . Kills . | . . . . . . . Allies Corrupted . | . . . . . . . Allies Melted . | . . . . . . . Intel | -11 -10 -9 -9 -9 -8 -8 ------- Run | Scr Mat Mat Min Exi Min Mat Robot Analysis Total . | . . . . . . . Derelict Logs Recovered 1 | . . . 1 . . . Drone Launches . | . . . . . . . Drone Recoveries . | . . . . . . . Exploration | -11 -10 -9 -9 -9 -8 -8 ------------- Run | Scr Mat Mat Min Exi Min Mat Turns Passed 3009 | 19 271 880 250 260 578 751 Spaces Moved 1529 | 12 166 375 154 174 362 286 Core . | . . . . . . . Treads . | . . . . . . . Legs 1529 | 12 166 375 154 174 362 286 Wheels . | . . . . . . . Hover . | . . . . . . . Flight . | . . . . . . . Fastest Speed 120 | 120 120 120 120 150 120 120 Average Speed 133 | 120 120 121 147 150 135 138 Slowest Speed 150 | 120 120 150 150 150 150 150 Overloaded Moves . | . . . . . . . Propulsion Burnouts . | . . . . . . . Robots Hopped . | . . . . . . . Cave-ins Triggered . | . . . . . . . Exploration Rate (%) 42 | 2 37 45 42 60 80 34 Regions Visited 6 Branch Regions 3 Pre-discovered Areas 1 | . . . . 1 . . Known Exits Taken 4 | . . 1 1 1 1 . Unknown Exits Taken 2 | 1 1 . . . . . Scrap Searched 1 | . . . . . 1 . Spaces Dug . | . . . . . . . Terrain Destroyed . | . . . . . . . Melee . | . . . . . . . Projectile . | . . . . . . . AOE . | . . . . . . . Terrain Rammed . | . . . . . . . Walls Destroyed . | . . . . . . . Machines Disabled . | . . . . . . . Actions | -11 -10 -9 -9 -9 -8 -8 --------- Run | Scr Mat Mat Min Exi Min Mat Total 2007 | 15 199 611 163 173 401 445 Wait 119 | . 9 78 3 . 2 27 Move 1523 | 11 165 374 153 173 361 286 Hop . | . . . . . . . Pick Up 3 | . . 2 . . . 1 Fast Attach 32 | 3 1 17 1 . 2 8 Attach . | . . . . . . . Detach 2 | . . . . . . 2 Swap 11 | . . 7 . . 1 3 Drop 29 | 1 . 18 . . 3 7 Fire 209 | . 19 85 6 . 20 79 Melee . | . . . . . . . Ram . | . . . . . . . Kick . | . . . . . . . Crush . | . . . . . . . Escape Stasis . | . . . . . . . Rewire . | . . . . . . . Trap . | . . . . . . . Miscellaneous 79 | . 5 30 . . 12 32 Route ------- -11/Scrapyard -10/Materials (discovered 3 exits: *Mat x2 / Min) -9/Materials -9/Mines (discovered 2 exits: Mat / *Exi) -9/Exiles (discovered 2 exits: *Min x2) -8/Mines -8/Materials (discovered 3 exits: Fac x3) History --------- Turn | Location | Event 1 | -11/Scrapyard | Discovered new exit (range 1) 8 | -11/Scrapyard | Upgraded with Propulsion slot (x1) 8 | -11/Scrapyard | Upgraded with Weapon slot (x1) 20 | -11/Scrapyard | Entered Materials 120 | -10/Materials | Discovered new exit (range 11) 189 | -10/Materials | Identified exit to Mines 271 | -10/Materials | Discovered new exit (range 15) 291 | -10/Materials | Entered another Materials area 293 | -9/Materials | Reached level 2 308 | -9/Materials | Build established: Mutant 431 | -9/Materials | Reached level 3 472 | -9/Materials | Upgraded with Weapon slot (x2) 482 | -9/Materials | Destroyed 11 combat bots 508 | -9/Materials | Upgraded with Utility slot (x1) 543 | -9/Materials | Upgraded with Utility slot (x1) 637 | -9/Materials | Upgraded with Power slot (x1) 680 | -9/Materials | Reached level 4 683 | -9/Materials | Upgraded with Propulsion slot (x1) 756 | -9/Materials | Upgraded with Utility slot (x1) 779 | -9/Materials | Build established: Scavenger-Gunner 918 | -9/Materials | Core integrity fell below 50% 1070 | -9/Materials | Identified exit to Mines 1114 | -9/Materials | Reached level 5 1171 | -9/Materials | Entered Mines 1180 | -9/Mines | Met a Derelict who couldn't figure out how to use a Trap Extractor 1191 | -9/Mines | Upgraded with Utility slot (x1) 1191 | -9/Mines | Found Powered Armor 1264 | -9/Mines | Discovered new exit (range 16) 1413 | -9/Mines | Discovered new exit (range 6) 1415 | -9/Mines | Deemed a non-threat by the Exiles lab entrance 1420 | -9/Mines | Identified exit to Exiles 1421 | -9/Mines | Build established: Scavenger-Skirmisher 1421 | -9/Mines | Entered Exiles 1441 | -9/Exiles | Discovered new exit (range 15) 1459 | -9/Exiles | Met 8R-AWN 1483 | -9/Exiles | Met EX-HEX 1583 | -9/Exiles | Met EX-DEC 1612 | -9/Exiles | Learned location of Zion (-7) 1666 | -9/Exiles | Discovered new exit (range 12) 1679 | -9/Exiles | Identified exit to Mines 1681 | -9/Exiles | Entered Mines 1683 | -8/Mines | Reached level 6 2022 | -8/Mines | Reached level 7 2249 | -8/Mines | Discovered new exit (range 11) 2258 | -8/Mines | Identified exit to Materials 2259 | -8/Mines | Entered Materials 2260 | -8/Materials | Identified exit to Factory 2260 | -8/Materials | Core integrity fell below 50% 2261 | -8/Materials | Reached level 8 2322 | -8/Materials | Garrison activated, responded to threat 2354 | -8/Materials | Core integrity fell below 20% 2381 | -8/Materials | Upgraded with Utility slot (x1) 2560 | -8/Materials | Reached level 9 2810 | -8/Materials | Upgraded with Propulsion slot (x1) 2891 | -8/Materials | Reached level 10 3010 | -8/Materials | Destroyed by L-31 Rogue with Katana Last Messages --------------- 02891_ Reached level 10. 02891_ G-47 Trooper destroyed. 02891_ Switching to secondary target: G-47 Trooper. 02892_ Acquired 12 matter. 02895_ G-47 Trooper destroyed. 02896_ Acquired 6 matter. 02907_ Connecting with Terminal... 02926_ G-47 Trooper destroyed. 02930_ Acquired 6 matter. 02969_ O-16 Technician: "IFF HANDSHAKE FAILED. SECURING TERMINAL." 02973_ ALERT: Hostiles spotted, dispatching reinforcements to Terminal M001. 02980_ Reactive Plating severed. 02982_ Acquired Reactive Plating. 02987_ Upgraded: Inventory Capacity (+1) 02991_ Y-45 Defender heat damages Heat Sink. 02991_ Heat Sink melted. 02991_ Y-45 Defender destroyed. 03003_ Adv. Sensor Array severed. 03005_ Acquired Adv. Sensor Array. Map ----- +----------------------------------------------------+ | ??????????????????#??###?##?### #/! ! | | ????????????????##??####?#?#?## #!#####T### | | ??????????????##????##?#?##??## #=########## | | ?????????????????#??###?###?### #=###?###### | | ???????????????#???##???#?###?####+#+##%###### // | | ??????????????#??##?##?#?######### ![==|*![ + // | | ????????????? ??? #####?## # ####+###### // | | ????????????? ?????###?#### =# #/!=%= #### | | ?????????????? """?###??#?#""" %+!#/ * #### | | ???????????????"?? ?#######""" *[#*# #### | | ?????????????"???" ##?#?#?#""" # # "T" #### | | ???????????????""" ??#?#### # #! """ ##?# | | ???????????"?? ?"??############### # #?###### | | ??????????????? ?? ?#??##??##?##?# ############### | | ?????????##?#?####?#?#?###########k# ######## | | ???????? ? ? w ^ + """ #?###### | | ?????????##?##??#?################ # """ ######## | | ???????? ??#???###?# ## ? # # """ ##?##### | | ???????? ???##?#??## """ ## ""? # # ######## | | ????????????#?#?##?# """ ## """ # # ####?### | | ??????? ????#??#?### """ ## ?""?# ######?######## | | ??????????#????#?#?# ##? # ######?######## | | ??????? ??#?????#?## """ !####+###k############### | | ?????? ?????#??###?# """ # u | | ???????? ???#??#??## """ lgg o | | ?????????#??##???#?# @# gY | | ?????? ? #?##?#???##"" # ################# | | ???????? # ????? ??#"T #% %###?#?##? ??? ? | | ?????? ?? ???? ???#"" #% %#????####? ?????? | | ?????????? ? ? ? # !!##%%%%#####?#???# ? ? | | ???????? ??? ??? ?######%#######???##?###? ????? | | ?????? ??+??? ? ???#?#??###?##?###?##?####? ? ??? | | ??????? ????????"? ?#??##???##?####?######?? ????? | | ??????? ? ????""???###?##?###?????#??###??????? ? | | ?????????????? ?"???##?#?#???###?##??#??#??#?????? | | ???????< ??????#?##??##?#???????###?##????#??????? | | ??????????#?????????????????????###???####?????? ? | | ?????????#?#???????#?#?#??#???#??##????##?#?#????? | | ???????????#????????#??##?#??#????#?#?#?#?#????? | | ??????????????#?##?????####????#?#?#???#?????????? | | ????????????###?##?###???#?#???????##?#??????????# | | ????????????????????##?#??#??#????###????????????# | | ????????????????#?##?#?###????#???##?????????????# | | ???????????????????##???#??##??#?????????????????# | | ???????????????????????#??#?###??????????????????# | | ?????????????????????????#???????????????????????? | | ?????????????????????????????????????????????????? | | ?????????????????????????????????????????????????? | | ?????????????????????????????????????????????????? | | ?????????????????????????????????????????????????? | +----------------------------------------------------+ Best States ------------- Heat Dissipation 67 Energy Generation 27 Energy Capacity 460 Matter Stores 300 Matter Capacity 300 Sight Range 16 Robot Scan Range 16 Terrain Scan Range 20 Terrain Scan Density 110 Armor Coverage 550 Resistance: KI 20 Evasion (%) 40 Targeting Accuracy 6 Item Schematics ----------------- None Robot Schematics ------------------ None Fabricated ------------ Nothing Alien Tech Used ----------------- None Achievements -------------- None Challenges ------------ None RPGLIKE | -11 -10 -9 -9 -9 -8 -8 --------- Run | Scr Mat Mat Min Exi Min Mat Levels Raised 9 | . . 4 . . 2 3 XP Earned 17168 | 3000 650 5411 1050 200 1700 5157 XP Spent 13420 | 1000 210 6340 1400 . 100 4370 Upgrades 25 | 2 3 12 1 . 1 6 Power Slot 1 | . . 1 . . . . Propulsion Slot 3 | 1 . 1 . . . 1 Utility Slot 5 | . . 3 1 . . 1 Weapon Slot 3 | 1 . 2 . . . . Heat Dissipation 7 | . 3 2 . . . 2 Mass Support 1 | . . . . . 1 . Inventory Capacity 3 | . . 1 . . . 2 Terrain Scan Density 1 | . . 1 . . . . Melee Accuracy 1 | . . 1 . . . . Protomatter Created 748 | . 30 222 13 . 93 390 Integrity Restored 1707 | . 87 666 . . 255 699 Core 1694 | . 74 666 . . 255 699 Parts 13 | . 13 . . . . . Protomatter Decayed 248 | . . . 83 . 8 157 Game ------ Seed ProtonSurveybotThruster Manual? 0 Play Time 00:41:19 Cumulative 261.8 hours Start 2021.07.04 @ 00:33:23 End 2021.07.04 @ 01:18:37 Sessions 1 Manual Loads 0 Difficulty Rogue Special Mode Winter2019/RPGLIKE Game No. 139 Rogue 136 Adventurer 1 Explorer 2 Win Type - Total 5 Types 3/1/1/0/0/0/0/0/0 Lore% 70 Gallery% 83 Achievement% 63 Wizard Run 0 Options --------- ASCII 0 Keyboard 1 Movement Numpad Keybinds 1 Fullscreen 1 Font 24/Terminus Map View 76x50 Tactical HUD 1 Map Filters NONE Filters NONE Steam 1 RUN: 29ebfc4a-b5b8-47de-8887-53d72c0f9a93